fUSD/lending_fUSD_20250708
["ID","MTS","AMOUNT","RATE_DAILY","PERIOD"]
[370336309,1751963465172,-1078.08655,0.00028636,3]
[370336310,1751963465190,-537.95,0.00028636,3]
[370336311,1751963465208,-1145.463663,0.00028636,3]
[370336312,1751963465225,-460.0,0.00028636,3]
[370336313,1751963465242,-460.0,0.00028636,3]
[370336314,1751963465259,-3679.98,0.00028636,3]
[370336315,1751963465275,-460.0,0.00028636,3]
[370336316,1751963465291,-1042.09,0.00028636,3]
[370336317,1751963465308,-460.0,0.00028636,3]
[370336318,1751963465325,-774.2,0.00028636,3]
[370336319,1751963465342,-460.0,0.00028636,3]
[370336320,1751963465360,-673.28,0.00028636,3]
[370336321,1751963465377,-738.87,0.00028636,3]
[370336322,1751963465393,-460.0,0.00028636,3]
[370336323,1751963465411,-460.0,0.00028636,3]
[370336324,1751963465427,-1048.38,0.00028636,3]
[370336325,1751963465445,-1297.67,0.00028636,3]
[370336326,1751963465468,-241.86670966,0.00028636,3]
[370336327,1751963465493,-733.07135179,0.00028636,3]
[370336328,1751963467215,-460.0,0.00028277,3]
[370336329,1751963467227,-460.0,0.00028277,3]
[370336330,1751963467237,-460.0,0.00028277,3]
[370336331,1751963467247,-3562.4,0.00028376,3]
[370336332,1751963467258,-228.21955,0.00028378,7]
[370336333,1751963467268,-228.21955,0.00028384,7]
[370336334,1751963467278,-228.21955,0.00028399,7]
[370336335,1751963467288,-316.73,0.00028551,3]
[370336336,1751963467298,-2262.93193855,0.00028636,3]
[370336337,1751963467308,-795.31,0.00028636,3]
[370336338,1751963467319,-151.0,0.00028637,7]
[370336339,1751963467329,-151.0,0.00028637,7]
[370336340,1751963467339,-198.716199,0.00028637,7]
[370336341,1751963467349,-151.0,0.00028637,7]
[370336342,1751963467359,-151.0,0.00028637,7]
[370336343,1751963467370,-1102.293454,0.00028637,7]
[370336344,1751963467380,-1102.293454,0.00028637,7]
[370336345,1751963467389,-151.0,0.00028637,7]
[370336346,1751963467399,-460.0,0.00028638,3]
[370336347,1751963467409,-460.0,0.00028638,3]
[370336348,1751963467419,-526.35434899,0.00028638,3]
[370336349,1751963467429,-460.0,0.00028638,3]
[370336350,1751963467439,-460.0,0.00028638,3]
[370336351,1751963467449,-460.0,0.00028638,3]
[370336352,1751963467459,-460.0,0.00028638,3]
[370336353,1751963467469,-460.0,0.00028638,3]
[370336354,1751963467479,-460.0,0.00028638,3]
[370336355,1751963467489,-460.0,0.00028638,3]
[370336356,1751963467499,-150.0,0.00028638,2]
[370336357,1751963467512,-151.0,0.00028638,7]
[370336358,1751963467522,-151.0,0.00028638,7]
[370336359,1751963467533,-151.0,0.00028638,7]
[370336360,1751963467544,-1000.0,0.00028638,3]
[370336361,1751963467555,-460.0,0.00028638,3]
[370336362,1751963467566,-661.49,0.00028638,3]
[370336363,1751963467577,-620.67,0.00028638,3]
[370336364,1751963467588,-4995.93,0.00028638,3]
[370336365,1751963467597,-676.85,0.00028638,3]
[370336366,1751963467608,-640.47,0.00028638,3]
[370336367,1751963467617,-612.69,0.00028638,3]
[370336368,1751963467627,-1788.72,0.00028638,3]
[370336369,1751963467637,-995.0,0.00028638,3]
[370336370,1751963467647,-151.0,0.00028638,7]
[370336371,1751963467656,-840.27,0.00028638,3]
[370336372,1751963467667,-151.0,0.00028638,7]
[370336373,1751963467676,-2070.8,0.00028638,3]
[370336374,1751963467686,-151.0,0.00028638,7]
[370336375,1751963467696,-561.41,0.00028638,3]
[370336376,1751963467706,-171.362756,0.00028638,7]
[370336377,1751963467715,-3453.3,0.00028638,3]
[370336378,1751963467726,-151.0,0.00028638,7]
[370336379,1751963467737,-1205.16,0.00028638,3]
[370336380,1751963467748,-3558.185866,0.00028638,7]
[370336381,1751963467760,-622.02,0.00028638,3]
[370336382,1751963467770,-151.0,0.00028638,7]
[370336383,1751963467780,-5547.99,0.00028638,3]
[370336384,1751963467790,-3558.185866,0.00028638,7]
[370336385,1751963467799,-505.3,0.00028638,3]
[370336386,1751963467809,-968.17,0.00028638,3]
[370336387,1751963467820,-1590.57,0.00028638,3]
[370336388,1751963467829,-719.19,0.00028638,3]
[370336389,1751963467839,-2226.83,0.00028638,3]
[370336390,1751963467848,-35542.53,0.00028638,3]
[370336391,1751963467858,-3253.27,0.00028638,3]
[370336392,1751963467868,-1138.53,0.00028638,3]
[370336393,1751963467878,-524.47801643,0.00028638,3]
[370336394,1751963467888,-879.63,0.00028638,3]
[370336395,1751963467898,-655.81,0.00028638,3]
[370336396,1751963467908,-2183.34,0.00028638,3]
[370336397,1751963467918,-161.504487,0.00028638,7]
[370336398,1751963467928,-161.504487,0.00028638,7]
[370336399,1751963467937,-460.0,0.00028639,3]
[370336400,1751963467947,-460.0,0.00028639,3]
[370336401,1751963467957,-460.0,0.00028639,3]
[370336402,1751963467967,-460.0,0.00028639,3]
[370336403,1751963467976,-523.82,0.00028639,3]
[370336404,1751963467986,-460.0,0.00028639,3]
[370336405,1751963467996,-2874.55,0.00028639,3]
[370336406,1751963468007,-681.28,0.00028639,3]
[370336407,1751963468018,-1056.68,0.00028639,3]
[370336408,1751963468029,-1289.78,0.00028639,3]
[370336409,1751963468038,-800.54,0.00028639,3]
[370336410,1751963468047,-1258.51,0.00028639,3]
[370336411,1751963468057,-460.0,0.00028639,3]
[370336412,1751963468067,-522.71,0.00028639,3]
[370336413,1751963468077,-460.0,0.00028639,3]
[370336414,1751963468087,-654.49,0.00028639,3]
[370336415,1751963468096,-653.21,0.00028639,3]
[370336416,1751963468106,-1500.0,0.0002864,2]
[370336417,1751963468116,-460.0,0.0002864,3]
[370336418,1751963468126,-460.0,0.0002864,3]
[370336419,1751963468137,-460.0,0.0002864,3]
[370336420,1751963468147,-500.0,0.0002864,3]
[370336421,1751963468157,-500.0,0.0002864,3]
[370336422,1751963468168,-460.0,0.0002864,3]
[370336423,1751963468178,-560.43302128,0.0002864,3]
[370336424,1751963468188,-460.0,0.0002864,3]
[370336425,1751963468200,-460.0,0.0002864,3]
[370336426,1751963468210,-1922.92,0.0002864,3]
[370336427,1751963468220,-460.0,0.0002864,3]
[370336428,1751963468231,-460.0,0.0002864,3]
[370336429,1751963468241,-460.0,0.0002864,3]
[370336430,1751963468251,-460.0,0.0002864,3]
[370336431,1751963468261,-462.68847341,0.0002864,3]
[370336432,1751963468272,-460.0,0.0002864,3]
[370336433,1751963468281,-460.0,0.0002864,3]
[370336434,1751963468290,-460.0,0.0002864,3]
[370336435,1751963468300,-842.63,0.0002864,3]
[370336436,1751963468310,-460.0,0.0002864,3]
[370336437,1751963468319,-169.03063744,0.0002864,3]
[370336438,1751963468329,-460.0,0.0002864,3]
[370336439,1751963468338,-460.0,0.0002864,3]
[370336440,1751963468348,-460.0,0.0002864,3]
[370336441,1751963468357,-460.0,0.0002864,3]
[370336442,1751963468367,-460.0,0.0002864,3]
[370336443,1751963468376,-556.65225431,0.0002864,3]
[370336444,1751963468386,-460.0,0.0002864,3]
[370336445,1751963468396,-460.0,0.0002864,3]
[370336446,1751963468405,-733.66,0.0002864,3]
[370336447,1751963468415,-460.0,0.0002864,3]
[370336448,1751963468424,-460.0,0.0002864,3]
[370336449,1751963468434,-460.0,0.0002864,3]
[370336450,1751963468444,-460.0,0.0002864,3]
[370336451,1751963468455,-1213.5,0.0002864,3]
[370336452,1751963468465,-377.03267759,0.0002864,3]
[370336453,1751963468475,-204.79400098,0.0002864,3]
[370336454,1751963468485,-460.0,0.0002864,3]
[370336455,1751963468495,-652.29,0.0002864,3]
[370336456,1751963468508,-460.0,0.0002864,3]
[370336457,1751963468518,-460.0,0.0002864,3]
[370336458,1751963468528,-460.0,0.0002864,3]
[370336459,1751963468538,-480.22,0.0002864,3]
[370336460,1751963468547,-489.14,0.0002864,3]
[370336461,1751963468557,-460.0,0.0002864,3]
[370336462,1751963468567,-1063.1,0.0002864,3]
[370336463,1751963468577,-460.0,0.0002864,3]
[370336464,1751963468587,-812.27,0.0002864,3]
[370336465,1751963468598,-460.0,0.0002864,3]
[370336466,1751963468609,-239.11805829,0.0002864,3]
[370336467,1751963468620,-460.0,0.0002864,3]
[370336468,1751963468631,-533.83,0.0002864,3]
[370336469,1751963468641,-460.0,0.0002864,3]
[370336470,1751963468651,-460.0,0.0002864,3]
[370336471,1751963468660,-258.60662978,0.0002864,3]
[370336472,1751963468671,-912.49,0.0002864,3]
[370336473,1751963468681,-460.0,0.0002864,3]
[370336474,1751963468690,-460.0,0.0002864,3]
[370336475,1751963468701,-500.0,0.0002864,2]
[370336476,1751963468710,-500.0,0.0002864,2]
[370336477,1751963468721,-460.0,0.0002864,3]
[370336478,1751963468731,-520.0,0.0002864,3]
[370336479,1751963468741,-1415.9,0.0002864,3]
[370336480,1751963468751,-460.0,0.0002864,3]
[370336481,1751963468760,-592.33127173,0.0002864,3]
[370336482,1751963468770,-716.84,0.0002864,3]
[370336483,1751963468780,-425.29893482,0.0002864,3]
[370336484,1751963468793,-554.28,0.0002864,3]
[370336485,1751963468802,-520.0,0.0002864,3]
[370336486,1751963468812,-460.0,0.0002864,3]
[370336487,1751963468822,-575.98487268,0.0002864,3]
[370336488,1751963468832,-1505.33,0.0002864,3]
[370336489,1751963468841,-460.0,0.0002864,3]
[370336490,1751963468851,-1266.89,0.0002864,3]
[370336491,1751963468860,-460.0,0.0002864,3]
[370336492,1751963468870,-460.0,0.0002864,3]
[370336493,1751963468880,-460.0,0.0002864,3]
[370336494,1751963468890,-460.0,0.0002864,3]
[370336495,1751963468899,-589.03,0.0002864,3]
[370336496,1751963468909,-492.66219565,0.0002864,3]
[370336497,1751963468919,-460.0,0.0002864,3]
[370336498,1751963468930,-460.0,0.0002864,3]
[370336499,1751963468940,-552.17,0.0002864,3]
[370336500,1751963468950,-460.0,0.0002864,3]
[370336501,1751963468960,-460.0,0.0002864,3]
[370336502,1751963468969,-460.0,0.0002864,3]
[370336503,1751963468979,-616.92,0.0002864,3]
[370336504,1751963468989,-460.0,0.0002864,3]
[370336505,1751963468999,-424.4263872,0.0002864,3]
[370336506,1751963469009,-460.0,0.0002864,3]
[370336507,1751963469019,-550.0,0.0002864,3]
[370336508,1751963469028,-545.07669301,0.0002864,3]
[370336509,1751963469038,-194.373243,0.0002864,7]
[370336510,1751963469047,-460.0,0.0002864,3]
[370336511,1751963469057,-460.0,0.0002864,3]
[370336512,1751963469067,-194.373243,0.0002864,7]
[370336513,1751963469077,-460.0,0.0002864,3]
[370336514,1751963469086,-460.0,0.0002864,3]
[370336515,1751963469096,-202.68074922,0.0002864,3]
[370336516,1751963469106,-532.22743942,0.0002864,3]
[370336517,1751963469124,-460.0,0.0002864,3]
[370336518,1751963469134,-460.0,0.0002864,3]
[370336519,1751963469145,-491.95794888,0.0002864,3]
[370336520,1751963469155,-460.0,0.0002864,3]
[370336521,1751963469372,-490.29596344,0.0002864,3]
[370336522,1751963469383,-460.0,0.0002864,3]
[370336523,1751963469394,-460.0,0.0002864,3]
[370336524,1751963469404,-460.0,0.0002864,3]
[370336525,1751963469414,-520.0,0.0002864,3]
[370336526,1751963469424,-460.0,0.0002864,3]
[370336527,1751963469434,-460.0,0.0002864,3]
[370336528,1751963469444,-473.25,0.0002864,3]
[370336529,1751963469455,-460.0,0.0002864,3]
[370336530,1751963469464,-460.0,0.0002864,3]
[370336531,1751963469475,-2129.49,0.0002864,3]
[370336532,1751963469484,-491.93743639,0.0002864,3]
[370336533,1751963469494,-479.268813,0.0002864,7]
[370336534,1751963469504,-224.90343803,0.0002864,3]
[370336535,1751963469518,-336.57571243,0.0002864,3]
[370336536,1751963469528,-911.27,0.0002864,3]
[370336537,1751963469538,-479.268813,0.0002864,7]
[370336538,1751963469548,-910.34,0.0002864,3]
[370336539,1751963469559,-491.81622415,0.0002864,3]
[370336540,1751963469569,-460.0,0.0002864,3]
[370336541,1751963469581,-666.98,0.0002864,3]
[370336542,1751963469593,-500.0,0.0002864,2]
[370336543,1751963469603,-500.0,0.0002864,2]
[370336544,1751963469614,-460.0,0.0002864,3]
[370336545,1751963469624,-460.0,0.0002864,3]
[370336546,1751963469635,-617.13,0.0002864,3]
[370336547,1751963469645,-460.0,0.0002864,3]
[370336548,1751963469655,-500.0,0.0002864,3]
[370336549,1751963469667,-500.0,0.0002864,3]
[370336550,1751963469676,-468.27394897,0.0002864,3]
[370336551,1751963469687,-460.0,0.0002864,3]
[370336552,1751963469698,-460.0,0.0002864,3]
[370336553,1751963469708,-460.0,0.0002864,3]
[370336554,1751963469719,-460.0,0.0002864,3]
[370336555,1751963469731,-283.50904454,0.0002864,3]
[370336556,1751963469741,-460.0,0.0002864,3]
[370336557,1751963469752,-490.0,0.0002864,3]
[370336558,1751963469762,-510.9426992,0.0002864,3]
[370336559,1751963469773,-597.87,0.0002864,3]
[370336560,1751963469788,-178.41204237,0.0002864,3]
[370336561,1751963469799,-936.08,0.0002864,3]
[370336562,1751963469811,-460.0,0.0002864,3]
[370336563,1751963469821,-211.84239461,0.0002864,3]
[370336564,1751963469834,-237.85946477,0.0002864,3]
[370336565,1751963469844,-460.0,0.0002864,3]
[370336566,1751963469855,-460.0,0.0002864,3]
[370336567,1751963469865,-1165.85,0.0002864,3]
[370336568,1751963469876,-460.0,0.0002864,3]
[370336569,1751963469886,-460.0,0.0002864,3]
[370336570,1751963469896,-151.0,0.0002864,7]
[370336571,1751963469906,-500.0,0.0002864,3]
[370336572,1751963469916,-500.0,0.0002864,3]
[370336573,1751963469926,-192.40536451,0.0002864,3]
[370336574,1751963469936,-583.23,0.0002864,3]
[370336575,1751963469946,-490.0,0.0002864,3]
[370336576,1751963469956,-460.0,0.0002864,3]
[370336577,1751963469966,-307.26322848,0.0002864,3]
[370336578,1751963469976,-460.0,0.0002864,3]
[370336579,1751963469987,-460.0,0.0002864,3]
[370336580,1751963469997,-460.0,0.0002864,3]
[370336581,1751963470008,-460.0,0.0002864,3]
[370336582,1751963470018,-460.0,0.0002864,3]
[370336583,1751963470028,-516.58,0.0002864,3]
[370336584,1751963470038,-569.81896999,0.0002864,3]
[370336585,1751963470048,-832.94,0.0002864,3]
[370336586,1751963470059,-491.81216486,0.0002864,3]
[370336587,1751963470069,-552.21526978,0.0002864,3]
[370336588,1751963470079,-460.0,0.0002864,3]
[370336589,1751963470090,-389.60078847,0.0002864,3]
[370336590,1751963470101,-522.3388612,0.0002864,3]
[370336591,1751963470111,-460.0,0.0002864,3]
[370336592,1751963470122,-550.0,0.0002864,3]
[370336593,1751963470132,-460.0,0.0002864,3]
[370336594,1751963470143,-737.02,0.0002864,3]
[370336595,1751963470153,-547.93,0.0002864,3]
[370336596,1751963470165,-460.0,0.0002864,3]
[370336597,1751963470175,-460.0,0.0002864,3]
[370336598,1751963470186,-228.21955,0.0002864,7]
[370336599,1751963470196,-228.21955,0.0002864,7]
[370336600,1751963470206,-300.0,0.0002864,10]
[370336601,1751963470216,-12097.5309796,0.0002864,16]
[370336602,1751963470235,-2734.01518264,0.0002864,16]
[370336603,1751963470256,-2302.09363341,0.0002864,16]
[370336604,1751963470491,-22125.83062554,0.0002864,16]
[370336605,1751963470520,-1345.24664615,0.0002864,16]
[370336606,1751963470618,-5711.4843212,0.0002864,16]
[370336607,1751963470630,-892.47396499,0.0002864,16]
[370336608,1751963471732,-460.0,0.00028277,3]
[370336609,1751963471742,-273.2620959,0.00028372,3]
[370336610,1751963471755,-186.7379041,0.00028372,3]
[370336611,1751963471765,-460.0,0.00028551,3]
[370336612,1751963471775,-17416.2620959,0.0002864,16]
[370336613,1751963471794,-2917.97374082,0.0002864,16]
[370336614,1751963471873,-973.17038355,0.0002864,16]
[370336615,1751963471884,-6459.08440774,0.0002864,16]
[370336616,1751963471896,-9257.63117602,0.0002864,16]
[370336617,1751963471935,-27710.0388029,0.0002864,16]
[370336618,1751963471951,-5155.36999718,0.0002864,16]
[370336619,1751964077620,183.19,0.00026396,120]
[370336625,1751964252887,157.96,0.00013699,2]
[370336627,1751964436519,554.42,0.00025288,120]
[370336630,1751964501150,218.65763006,0.00013699,2]
[370336639,1751964631852,-671.3542708,0.0001991,2]
[370336640,1751964631903,-936.79460021,0.0001991,2]
[370336641,1751964631916,-891.85112899,0.0001991,2]
[370336642,1751964631926,-289.89677845,0.0001991,2]
[370336643,1751964631937,-289.89677845,0.0001991,2]
[370336644,1751964631947,-24.60198975,0.00020543,2]
[370336645,1751964631967,-2220.06372176,0.00020543,2]
[370336646,1751964631980,-255.33428849,0.00020543,2]
[370336647,1751964631991,-289.89677845,0.00020543,2]
[370336648,1751964632001,-157.96,0.00020951,2]
[370336649,1751964632012,-549.26063816,0.00021484,2]
[370336650,1751964632025,-650.73936184,0.00021484,2]
[370336651,1751964632035,-712.63226317,0.00021485,2]
[370336652,1751964632076,-487.36773683,0.00021485,2]
[370336653,1751964632087,-150.0,0.000216,2]
[370336654,1751964632097,-300.0,0.000219,2]
[370336655,1751964632108,-617.35672023,0.00021901,2]
[370336656,1751964632121,-1882.64327977,0.00021901,2]
[370336657,1751964632131,-2500.0,0.00021901,2]
[370336658,1751964632142,-2500.0,0.00021901,2]
[370336659,1751964632152,-150.0,0.0002201,2]
[370336660,1751964632163,-150.0,0.0002243,2]
[370336661,1751964632174,-150.0,0.0002284,2]
[370336662,1751964632184,-649.68848949,0.000229,8]
[370336663,1751964632194,-150.0,0.0002326,2]
[370336664,1751964632204,-300.0,0.0002336,2]
[370336665,1751964632215,-649.68848943,0.00023417,9]
[370336666,1751964632225,-150.0,0.0002367,2]
[370336668,1751964632235,-420.0,0.000238,2]
[370336670,1751964632245,-649.68848943,0.00023934,10]
[370336672,1751964632255,-250.0,0.0002409,2]
[370336673,1751964632265,-649.68848943,0.00024452,11]
[370336674,1751964632276,-5000.67501111,0.0002465,2]
[370336676,1751964632286,-162.37,0.00024889,2]
[370336678,1751964632296,-522.0,0.00024911,2]
[370336680,1751964632306,-649.68848943,0.00024969,12]
[370336682,1751964632316,-4415.3785678,0.00025066,2]
[370336683,1751964632328,-1413.48841449,0.00025066,2]
[370336684,1751964632340,-1640.33301771,0.00025066,2]
[370336685,1751964632350,-649.68848943,0.00025486,13]
[370336686,1751964632360,-150.0,0.00025488,2]
[370336687,1751964632370,-150.0,0.00025509,2]
[370336688,1751964632380,-403.68407749,0.0002567,2]
[370336689,1751964632393,-146.31592251,0.0002567,2]
[370336691,1751964632403,-218.42327274,0.0002567,2]
[370336693,1751964632415,-208.77742186,0.0002567,2]
[370336695,1751964632425,-7214.10063369,0.00025671,2]
[370336698,1751964632437,-2813.40736707,0.00025671,2]
[370336702,1751964632453,-648.18043433,0.00025671,2]
[370336705,1751964632465,-1457.96097743,0.00025671,2]
[370336709,1751964632492,-2222.01113219,0.00025671,2]
[370337034,1751964637927,-3791.18945529,0.00025671,2]
[370337035,1751964637937,-150.0,0.00025731,2]
[370337036,1751964637947,-150.0,0.00025739,2]
[370337037,1751964637956,-150.0,0.00025765,2]
[370337038,1751964637967,-150.0,0.00025797,2]
[370337039,1751964637977,-150.0,0.0002582,2]
[370337040,1751964637990,-587.0,0.00025866,2]
[370337041,1751964637999,-150.0,0.00025885,2]
[370337042,1751964638009,-649.68848943,0.00026003,14]
[370337043,1751964638018,-150.0,0.00026049,2]
[370337044,1751964638027,-150.0,0.00026097,2]
[370337045,1751964638037,-1619.08,0.00026124,2]
[370337046,1751964638047,-150.0,0.00026186,2]
[370337047,1751964638057,-150.0,0.00026186,2]
[370337048,1751964638066,-150.0,0.00026186,2]
[370337049,1751964638076,-150.0,0.00026186,2]
[370337050,1751964638085,-150.48803541,0.00026186,2]
[370337051,1751964638095,-150.0,0.00026186,2]
[370337052,1751964638104,-150.0,0.00026186,2]
[370337053,1751964638114,-150.0,0.00026186,2]
[370337054,1751964638123,-150.0,0.00026186,2]
[370337055,1751964638132,-150.0,0.00026186,2]
[370337056,1751964638141,-150.0,0.00026186,2]
[370337057,1751964638150,-150.0,0.00026186,2]
[370337058,1751964638160,-150.0,0.00026186,2]
[370337059,1751964638169,-150.0,0.00026186,2]
[370337060,1751964638178,-150.0,0.00026238,4]
[370337061,1751964638188,-150.0,0.00026253,2]
[370337062,1751964638201,-150.0,0.00026265,4]
[370337064,1751964638211,-150.59,0.00026265,2]
[370337066,1751964638222,-150.0,0.0002629,4]
[370337068,1751964638232,-150.0,0.00026298,4]
[370337069,1751964638242,-250.0,0.00026308,2]
[370337070,1751964638252,-150.0,0.00026332,4]
[370337072,1751964638262,-150.0,0.00026342,4]
[370337074,1751964638271,-150.0,0.00026344,4]
[370337076,1751964638281,-150.0,0.00026348,4]
[370337078,1751964638290,-150.0,0.00026357,4]
[370337080,1751964638300,-150.0,0.00026394,4]
[370337082,1751964638310,-150.0,0.00026409,2]
[370337084,1751964638319,-150.0,0.0002641,4]
[370337086,1751964638329,-150.0,0.00026413,2]
[370337087,1751964638338,-150.0,0.00026422,4]
[370337089,1751964638348,-150.0,0.00026446,4]
[370337091,1751964638357,-150.0,0.00026462,2]
[370337094,1751964638367,-150.0,0.00026477,4]
[370337097,1751964638377,-150.0,0.00026498,4]
[370337099,1751964638386,-150.0,0.00026501,4]
[370337102,1751964638396,-150.0,0.0002651,4]
[370337105,1751964638406,-649.68848943,0.00026521,15]
[370337108,1751964638416,-150.0,0.00026522,4]
[370337111,1751964638426,-150.0,0.00026529,4]
[370337112,1751964638435,-150.0,0.0002655,4]
[370337114,1751964638444,-150.0,0.00026579,4]
[370337116,1751964638454,-150.0,0.00026587,2]
[370337118,1751964638464,-150.0,0.00026602,4]
[370337120,1751964638474,-150.0,0.00026602,4]
[370337121,1751964638483,-150.0,0.00026619,2]
[370337123,1751964638493,-150.0,0.00026623,4]
[370337125,1751964638503,-150.0,0.00026634,4]
[370337127,1751964638512,-150.0,0.00026646,2]
[370337129,1751964638522,-150.0,0.00026654,4]
[370337130,1751964638532,-150.0,0.00026658,4]
[370337132,1751964638542,-150.01,0.00026665,2]
[370337134,1751964638552,-150.0,0.00026671,4]
[370337136,1751964638561,-150.0,0.00026678,2]
[370337138,1751964638570,-150.0,0.000267,4]
[370337140,1751964638580,-150.0,0.00026701,2]
[370337141,1751964638590,-150.0,0.00026706,4]
[370337143,1751964638599,-150.0,0.00026731,2]
[370337145,1751964638609,-150.0,0.00026737,4]
[370337147,1751964638619,-150.0,0.00026746,4]
[370337149,1751964638629,-150.0,0.00026758,4]
[370337151,1751964638638,-150.0,0.00026768,4]
[370337153,1751964638648,-150.0,0.0002681,4]
[370337154,1751964638657,-150.0,0.00026815,4]
[370337156,1751964638667,-150.0,0.00026833,4]
[370337158,1751964638676,-1870.35,0.00026838,2]
[370337160,1751964638686,-150.0,0.00026841,2]
[370337162,1751964638695,-1852.42,0.00026849,2]
[370337163,1751964638705,-150.0,0.00026858,4]
[370337165,1751964638715,-150.0,0.00026862,4]
[370337167,1751964638724,-150.0,0.0002687,2]
[370337169,1751964638734,-150.0,0.00026871,4]
[370337171,1751964638753,-150.0,0.00026894,4]
[370337173,1751964638763,-150.0,0.00026895,2]
[370337175,1751964638773,-166.89,0.000269,2]
[370337177,1751964638784,-150.0,0.00026914,4]
[370337179,1751964638794,-150.0,0.00026914,4]
[370337181,1751964638804,-150.0,0.00026914,4]
[370337183,1751964638814,-150.0,0.0002694,2]
[370337185,1751964638823,-347.0,0.00026956,2]
[370337187,1751964638833,-150.0,0.00026966,4]
[370337189,1751964638844,-150.0,0.0002697,4]
[370337190,1751964638855,-150.0,0.00026973,4]
[370337192,1751964638865,-522.0,0.00026975,5]
[370337194,1751964638874,-150.0,0.00026995,4]
[370337196,1751964638884,-207.4,0.00027,2]
[370337197,1751964638893,-150.0,0.00027018,4]
[370337199,1751964638903,-150.0,0.00027018,4]
[370337201,1751964638913,-649.68848943,0.00027038,16]
[370337203,1751964638922,-150.0,0.00027042,4]
[370337205,1751964638932,-150.0,0.00027049,2]
[370337206,1751964638941,-150.0,0.00027051,4]
[370337208,1751964638951,-150.0,0.00027054,2]
[370337210,1751964638962,-150.0,0.00027059,2]
[370337212,1751964638973,-150.0,0.00027059,4]
[370337214,1751964638985,-150.0,0.0002707,4]
[370337216,1751964638994,-150.0,0.00027082,4]
[370337217,1751964639006,-150.0,0.00027103,2]
[370337219,1751964639015,-150.0,0.00027122,4]
[370337221,1751964639026,-150.0,0.0002713,4]
[370337223,1751964639036,-150.0,0.00027156,4]
[370337225,1751964639045,-150.0,0.00027156,4]
[370337227,1751964639055,-150.0,0.00027156,4]
[370337229,1751964639068,-150.0,0.00027167,2]
[370337230,1751964639078,-150.0,0.00027173,4]
[370337232,1751964639088,-150.0,0.00027193,4]
[370337234,1751964639098,-150.0,0.00027205,4]
[370337236,1751964639108,-150.0,0.00027209,4]
[370337238,1751964639118,-150.0,0.00027213,4]
[370337240,1751964639127,-150.0,0.00027225,4]
[370337242,1751964639137,-1000.0,0.00027249,2]
[370337244,1751964639147,-150.0,0.00027277,4]
[370337245,1751964639158,-150.0,0.00027287,4]
[370337247,1751964639168,-150.0,0.00027305,4]
[370337249,1751964639178,-150.0,0.00027318,4]
[370337251,1751964639187,-150.0,0.00027329,4]
[370337253,1751964639202,-150.0,0.00027349,2]
[370337255,1751964639212,-150.0,0.0002735,4]
[370337257,1751964639223,-150.0,0.00027358,2]
[370337259,1751964639233,-150.0,0.00027362,2]
[370337261,1751964639243,-150.0,0.00027366,4]
[370337263,1751964639253,-150.0,0.00027367,2]
[370337265,1751964639264,-150.0,0.00027381,4]